bitfinex-derivatives/quotes_BTCF0:USTF0_20260106
["timestamp","ask_amount","ask_price","bid_price","bid_amount"]
[1767670162491,0.0906,93862.0,93843.0,0.10337082]
[1767670165692,0.01481653,93863.0,93843.0,0.10337082]
[1767670165895,0.0906,93862.0,93844.0,0.010656]
[1767670166195,0.01481653,93863.0,93844.0,0.010656]
[1767670166395,0.0906,93862.0,93844.0,0.010656]
[1767670166697,0.0906,93862.0,93846.0,0.1071703]
[1767670167596,0.0906,93862.0,93846.0,0.09959829]
[1767670168303,0.10541653,93862.0,93843.0,0.00737735]
[1767670168694,0.10541653,93862.0,93844.0,0.010656]
[1767670169190,0.10541653,93862.0,93843.0,0.00503335]
[1767670169390,0.09813689,93860.0,93843.0,0.00503335]
[1767670170189,0.09813689,93860.0,93844.0,0.010656]
[1767670174401,0.0906,93859.0,93844.0,0.010656]
[1767670174896,0.0906,93859.0,93841.0,0.11025429]
[1767670176900,0.0906,93859.0,93841.0,0.09625429]
[1767670177403,0.0906,93859.0,93841.0,0.08559829]
[1767670178502,0.10655814,93859.0,93841.0,0.08559829]
[1767670179204,0.10655814,93859.0,93842.0,0.010656]
[1767670179802,0.10655814,93859.0,93844.0,0.010656]
[1767670180204,0.01595814,93858.0,93844.0,0.010656]
[1767670182404,0.01595814,93858.0,93841.0,0.09625429]
[1767670182604,0.01595814,93858.0,93843.0,0.010656]
[1767670183301,0.01595814,93858.0,93841.0,0.08559829]
[1767670183506,0.01595814,93858.0,93842.0,0.010656]
[1767670183707,0.0906,93859.0,93842.0,0.010656]
[1767670184099,0.10655814,93859.0,93842.0,0.010656]
[1767670184496,0.38296363,93948.0,93849.0,0.10879189]
[1767670184497,0.01595814,93865.0,93849.0,0.10879189]
[1767670184703,0.01595814,93865.0,93837.0,0.00015984]
[1767670184704,0.0906,93864.0,93850.0,0.09813689]
[1767670185001,0.0906,93864.0,93848.0,0.09884784]
[1767670185206,0.0906,93864.0,93848.0,0.09709881]
[1767670185594,0.0906,93864.0,93849.0,0.010655]
[1767670186209,0.0906,93864.0,93849.0,0.10775381]
[1767670186408,0.01595814,93863.0,93849.0,0.010655]
[1767670186707,0.01595814,93863.0,93846.0,0.010656]
[1767670188409,0.0906,93864.0,93846.0,0.01240762]
[1767670189009,0.01595814,93863.0,93846.0,0.010656]
[1767670190911,0.01595814,93858.0,93843.0,0.010656]
[1767670192208,0.01595814,93858.0,93843.0,0.007656]
[1767670192713,0.01595814,93858.0,93839.0,0.00112975]
[1767670192906,0.0906,93863.0,93847.0,0.010656]
[1767670193107,0.01595814,93862.0,93847.0,0.010656]
[1767670193805,0.01595814,93862.0,93844.0,0.010656]
[1767670195213,0.01595814,93862.0,93846.0,0.010656]
[1767670196612,0.01505332,93861.0,93842.0,0.010656]
[1767670196811,0.01505332,93857.0,93842.0,0.010656]
[1767670197218,0.01505332,93856.0,93842.0,0.010656]
[1767670197417,0.01505332,93854.0,93837.0,0.00015984]
[1767670197618,0.09568711,93855.0,93837.0,0.00015984]
[1767670197809,0.01505332,93857.0,93837.0,0.00407313]
[1767670199111,0.01505332,93857.0,93841.0,0.010656]
[1767670201020,0.01505332,93857.0,93838.0,0.00444148]
[1767670201325,0.10572211,93863.0,93840.0,0.00444148]
[1767670201516,0.0906,93863.0,93845.0,0.01549915]
[1767670201922,0.01512211,93862.0,93845.0,0.010656]
[1767670202515,0.01512211,93862.0,93842.0,0.010656]
[1767670202824,0.01512211,93861.0,93842.0,0.010656]
[1767670203434,0.01512211,93861.0,93839.0,0.093854]
[1767670203435,0.01512211,93858.0,93839.0,0.104511]
[1767670205027,0.01512211,93858.0,93842.0,0.010656]
[1767670205233,0.10572211,93862.0,93845.0,0.010656]
[1767670205436,0.01512211,93861.0,93845.0,0.010656]
[1767670205932,0.01512211,93861.0,93842.0,0.10451]
[1767670207429,0.01512211,93861.0,93844.0,0.010656]
[1767670208235,0.0906,93862.0,93844.0,0.010656]
[1767670208437,0.0906,93862.0,93844.0,0.01270775]
[1767670208934,0.0906,93862.0,93842.0,0.08956175]
[1767670209232,0.00213064,93869.0,93845.0,0.010656]
[1767670209233,0.09273064,93869.0,93845.0,0.010656]
[1767670209738,0.09273064,93869.0,93853.0,0.010655]
[1767670209937,0.09273064,93869.0,93855.0,0.010655]
[1767670210329,0.09273064,93869.0,93849.0,0.010655]
[1767670210330,0.01725275,93869.0,93849.0,0.010655]
[1767670210535,0.00213064,93869.0,93851.0,0.010655]
[1767670211137,0.01725275,93869.0,93851.0,0.010655]
[1767670213441,0.01725275,93869.0,93853.0,0.010655]
[1767670214843,0.01725275,93869.0,93850.0,0.010655]
[1767670215341,0.01725275,93869.0,93846.0,0.010656]
[1767670215342,0.01512211,93865.0,93846.0,0.010656]
[1767670215742,0.01512211,93864.0,93846.0,0.010656]
[1767670216645,0.01512211,93864.0,93842.0,0.08551]
[1767670216845,0.01512211,93864.0,93846.0,0.010656]
[1767670217046,0.01512211,93864.0,93845.0,0.010656]
[1767670217948,0.01512211,93864.0,93847.0,0.010656]
[1767670219951,0.01512211,93862.0,93844.0,0.010656]
[1767670220745,0.09368866,93863.0,93844.0,0.010656]
[1767670220944,0.01512211,93861.0,93843.0,0.0906]
[1767670221147,0.01512211,93859.0,93843.0,0.0906]
[1767670223347,0.01512211,93859.0,93844.0,0.010656]
[1767670224242,0.01512211,93859.0,93843.0,0.088256]
[1767670225351,0.01512211,93859.0,93844.0,0.010656]
[1767670228844,0.01512211,93859.0,93845.0,0.010656]
[1767670229045,0.01512211,93863.0,93849.0,0.010655]
[1767670229855,0.01512211,93866.0,93852.0,0.010655]
[1767670230048,0.09273064,93869.0,93852.0,0.104509]
[1767670230752,0.10785275,93869.0,93852.0,0.104509]
[1767670231150,0.01433205,93868.0,93848.0,0.010655]
[1767670232055,0.01433205,93868.0,93847.0,0.09279938]
[1767670233256,0.01433205,93868.0,93848.0,0.010655]
[1767670235055,0.01433205,93868.0,93850.0,0.010655]
[1767670239760,0.01433205,93868.0,93847.0,0.09279938]
[1767670240161,0.01433205,93868.0,93850.0,0.010655]
[1767670240557,0.01433205,93868.0,93847.0,0.10345538]
[1767670240764,0.01433205,93862.0,93844.0,0.010656]
[1767670243665,0.01433205,93860.0,93843.0,0.088256]
[1767670243864,0.01433205,93859.0,93843.0,0.098912]
[1767670245061,0.09839394,93860.0,93847.0,0.010656]
[1767670247466,0.09839394,93860.0,93847.0,0.006656]
[1767670247868,0.09839394,93860.0,93844.0,0.010656]
[1767670250368,0.01433205,93854.0,93843.0,0.088256]
[1767670250568,0.01433205,93864.0,93843.0,0.088256]
[1767670250868,0.01433205,93858.0,93843.0,0.088256]
[1767670251870,0.01433205,93857.0,93843.0,0.088256]
[1767670252262,0.01433205,93857.0,93834.0,0.09914438]
[1767670252464,0.01433205,93848.0,93832.0,0.0906]
[1767670255065,0.01433205,93848.0,93832.0,0.101257]
[1767670255266,0.01409066,93834.0,93818.0,0.010659]
[1767670255464,0.01409066,93834.0,93820.0,0.09816772]
[1767670255664,0.01409066,93834.0,93820.0,0.0906]
[1767670256371,0.09188141,93835.0,93821.0,0.010659]
[1767670257974,0.09188141,93835.0,93820.0,0.18876772]
[1767670258378,0.09188141,93835.0,93820.0,0.0906]
[1767670258567,0.01409066,93823.0,93807.0,0.0906]
[1767670259271,0.01409066,93823.0,93809.0,0.01066]
[1767670259464,0.01409066,93829.0,93810.0,0.09816772]
[1767670259667,0.01417701,93828.0,93810.0,0.09816772]
[1767670260075,0.01417701,93828.0,93811.0,0.01066]
[1767670260369,0.01417701,93828.0,93810.0,0.09816772]
[1767670260569,8.635e-05,93828.0,93818.0,0.09816772]
[1767670260777,0.0906,93833.0,93820.0,0.10930557]
[1767670261073,0.0906,93838.0,93820.0,0.10930557]
[1767670261373,0.0906,93839.0,93820.0,0.10930557]
[1767670261766,0.01303673,93843.0,93820.0,0.10930557]
[1767670262066,0.10363673,93842.0,93823.0,0.010658]
[1767670262267,0.0906,93841.0,93823.0,0.010658]
[1767670262469,0.01303673,93841.0,93823.0,0.010658]
[1767670262673,0.0906,93840.0,93823.0,0.010658]
[1767670262871,0.09246007,93844.0,93820.0,0.09864657]
[1767670263062,0.01303673,93849.0,93830.0,0.09816772]
[1767670263373,0.0906,93850.0,93831.0,0.09235143]
[1767670263764,0.10363673,93850.0,93831.0,0.09235143]
[1767670263962,0.01303673,93849.0,93831.0,0.09235143]
[1767670264165,0.01303673,93847.0,93827.0,0.010658]
[1767670264366,0.01303673,93845.0,93827.0,0.010658]
[1767670264770,0.01303673,93845.0,93824.0,0.010658]
[1767670265767,0.01303673,93833.0,93818.0,0.0906]
[1767670266073,0.09246007,93834.0,93818.0,0.0906]
[1767670266269,0.01303673,93837.0,93818.0,0.0906]
[1767670266876,0.01303673,93837.0,93819.0,0.010659]
[1767670267379,0.01303673,93845.0,93824.0,0.010658]
[1767670267570,0.00213132,93839.0,93821.0,0.09235143]
[1767670267769,0.00213132,93839.0,93822.0,0.010658]
[1767670268477,0.00213132,93839.0,93825.0,0.010658]
[1767670268676,0.00213132,93839.0,93822.0,0.09235143]
[1767670268975,0.00213132,93839.0,93823.0,0.010658]
[1767670269381,0.00213132,93839.0,93825.0,0.010658]
[1767670269579,0.00213132,93839.0,93827.0,0.010658]
[1767670270569,3.2e-07,93839.0,93833.0,0.010657]
[1767670270776,0.01303673,93850.0,93833.0,0.010657]
[1767670270777,0.09064,93846.0,93833.0,0.010657]
[1767670271277,0.09064,93846.0,93830.0,0.10882572]
[1767670271779,0.09064,93846.0,93830.0,0.17917715]
[1767670272383,0.09246007,93852.0,93832.0,0.010657]
[1767670272570,0.010655,93857.0,93840.0,0.09816772]
[1767670272571,0.09064,93853.0,93840.0,0.09816772]
[1767670273081,0.09064,93853.0,93836.0,0.010657]
[1767670273278,0.01303673,93856.0,93836.0,0.010657]
[1767670273476,0.09064,93855.0,93836.0,0.010657]
[1767670273980,0.10367673,93855.0,93836.0,0.010657]
[1767670274678,0.09246007,93862.0,93840.0,0.19051915]
[1767670274880,0.09064,93861.0,93841.0,0.09235143]
[1767670275274,0.01303673,93860.0,93841.0,0.09235143]
[1767670275972,0.01303673,93863.0,93843.0,0.10300743]
[1767670276178,0.09064,93862.0,93843.0,0.10300743]
[1767670276777,0.09064,93862.0,93845.0,0.09235143]
[1767670277582,0.01303673,93866.0,93845.0,0.09235143]
[1767670278076,0.0906,93865.0,93845.0,0.09235143]
[1767670278384,0.0906,93865.0,93848.0,0.010656]
[1767670278874,0.10363673,93865.0,93848.0,0.010656]
[1767670279582,0.10363673,93865.0,93845.0,0.07800743]
[1767670279783,0.00213064,93869.0,93850.0,0.09816772]
[1767670279985,0.01303673,93867.0,93850.0,0.09816772]
[1767670280479,0.0906,93868.0,93850.0,0.09816772]
[1767670280674,0.00213064,93869.0,93858.0,0.09816772]
[1767670280876,0.09246007,93877.0,93859.0,0.010654]
[1767670281077,0.1054968,93877.0,93859.0,0.010654]
[1767670281470,0.0906,93882.0,93864.0,0.010654]
[1767670281669,0.0906,93882.0,93864.0,0.10300543]
[1767670281876,0.10363673,93882.0,93864.0,0.10300543]
[1767670282177,0.01303673,93881.0,93864.0,0.010654]
[1767670282577,0.0906,93882.0,93864.0,0.010654]
[1767670282882,0.0906,93882.0,93864.0,0.10300543]
[1767670283076,0.09816772,93890.0,93864.0,0.10300543]
[1767670283077,0.01303673,93880.0,93864.0,0.010654]
[1767670283383,0.09246007,93881.0,93864.0,0.010654]
[1767670283573,0.0906,93882.0,93864.0,0.010654]
[1767670284783,0.10363673,93882.0,93864.0,0.010654]
[1767670285177,0.10363673,93882.0,93867.0,0.010653]
[1767670286384,0.10363673,93882.0,93863.0,0.010654]
[1767670286582,0.01303673,93880.0,93863.0,0.010654]
[1767670287384,0.01303673,93880.0,93861.0,0.09235143]
[1767670287385,0.01303673,93880.0,93861.0,0.09000543]
[1767670287681,0.09246007,93881.0,93861.0,0.09000543]
[1767670287878,0.1054968,93881.0,93861.0,0.09000543]
[1767670288283,0.1054968,93881.0,93863.0,0.010654]
[1767670289480,0.1054968,93881.0,93865.0,0.010653]
[1767670289680,0.1054968,93881.0,93868.0,0.010653]
[1767670291385,0.1054968,93881.0,93865.0,0.010654]
[1767670291584,0.0129579,93879.0,93865.0,0.010654]
[1767670293382,0.0129579,93879.0,93861.0,0.09000543]
[1767670293689,0.10304761,93878.0,93860.0,0.09816772]
[1767670295186,0.10304761,93878.0,93860.0,0.08016772]
[1767670296092,0.0129579,93877.0,93855.0,0.09707178]
[1767670296388,0.0129579,93877.0,93865.0,0.010654]
[1767670296589,0.0906,93882.0,93860.0,0.09816772]
[1767670296590,0.0129579,93880.0,93861.0,0.09707178]
[1767670297588,9e-07,93880.0,93861.0,0.09707178]
[1767670297789,0.09008971,93892.0,93880.0,0.010652]
[1767670297984,0.09008971,93892.0,93882.0,0.010652]
[1767670298485,0.09008971,93892.0,93871.0,0.00255571]
[1767670298486,0.09008971,93892.0,93879.0,0.010652]
[1767670298686,0.09008971,93892.0,93880.0,0.09816772]
[1767670299392,0.09008971,93892.0,93878.0,0.010652]
[1767670299690,0.0129579,93891.0,93878.0,0.010652]
[1767670299889,0.0906,93898.0,93877.0,0.010652]
[1767670299890,0.0129579,93887.0,93877.0,0.010652]
[1767670300086,0.09008971,93888.0,93877.0,0.010652]
[1767670300290,0.0129579,93890.0,93877.0,0.010652]
[1767670300880,0.0129579,93889.0,93877.0,0.010652]
[1767670301086,0.0129579,93887.0,93877.0,0.010652]
[1767670302494,0.09008971,93888.0,93877.0,0.010652]
[1767670302692,0.09008971,93888.0,93870.0,0.09681972]
[1767670302892,0.09008971,93888.0,93876.0,0.010652]
[1767670303193,0.09008971,93888.0,93870.0,0.09681972]
[1767670303895,0.0129579,93887.0,93865.0,0.00034008]
[1767670304197,0.09008971,93888.0,93877.0,0.010652]
[1767670305796,0.10304761,93888.0,93868.0,0.00034008]
[1767670305995,0.10304761,93888.0,93870.0,0.09816772]
[1767670306703,0.0129579,93892.0,93879.0,0.010652]
[1767670307296,0.0129579,93891.0,93879.0,0.010652]
[1767670307498,0.0129579,93891.0,93881.0,0.010652]
[1767670308203,0.0906,93908.0,93885.0,0.10947335]
[1767670308400,0.0906,93907.0,93890.0,0.09816772]
[1767670308900,0.0906,93907.0,93891.0,0.010651]
[1767670309999,0.10304761,93906.0,93891.0,0.010651]
[1767670310298,0.1035579,93909.0,93896.0,0.09816772]
[1767670310498,0.0129579,93907.0,93891.0,0.006651]
[1767670310793,0.0129579,93905.0,93884.0,0.01240157]
[1767670310999,0.0129579,93904.0,93884.0,0.01240157]
[1767670311199,0.0129579,93904.0,93887.0,0.010651]
[1767670312107,0.0129579,93907.0,93887.0,0.02305257]
[1767670312405,0.0906,93916.0,93898.0,0.01240157]
[1767670312598,0.0236049,93924.0,93895.0,0.02305157]
[1767670312797,0.0129579,93922.0,93899.0,0.02305157]
[1767670312997,0.1035179,93925.0,93904.0,0.10947335]
[1767670313203,0.1035179,93925.0,93898.0,0.09056]
[1767670313204,0.10304761,93928.0,93908.0,0.010649]
[1767670313403,0.0129579,93928.0,93908.0,0.12012235]
[1767670313605,0.0129579,93928.0,93908.0,0.21068235]
[1767670313913,0.0129579,93923.0,93908.0,0.09056]
[1767670314298,0.0129579,93920.0,93908.0,0.09056]
[1767670314608,0.01377859,93910.0,93901.0,0.09056]
[1767670314998,0.01377859,93913.0,93901.0,0.09056]
[1767670315198,0.01377859,93913.0,93894.0,0.01441848]
[1767670315400,0.10575854,93917.0,93896.0,0.01441848]
[1767670315706,0.10575854,93917.0,93897.0,0.09056]
[1767670315898,0.01377859,93916.0,93897.0,0.09056]
[1767670317412,0.01377859,93920.0,93899.0,0.01441848]
[1767670317711,0.01377859,93920.0,93900.0,0.09056]
[1767670317905,0.01377859,93920.0,93900.0,0.10121]
[1767670318098,0.01377859,93920.0,93900.0,0.08221]
[1767670318504,0.01377859,93919.0,93900.0,0.08221]
[1767670319115,0.01377859,93918.0,93900.0,0.08221]
[1767670319805,0.01377859,93918.0,93900.0,0.07156]
[1767670320711,0.01377859,93922.0,93907.0,0.010649]
[1767670321108,0.0132016,93916.0,93902.0,0.010649]
[1767670321605,0.0132016,93920.0,93906.0,0.010649]
[1767670321805,0.01277528,93929.0,93900.0,0.07156]
[1767670321806,0.0132016,93928.0,93905.0,0.01426249]
[1767670322010,0.0132016,93928.0,93906.0,0.11280792]
[1767670322310,0.0132016,93920.0,93904.0,0.010649]
[1767670323005,0.0132016,93918.0,93900.0,0.01065]
[1767670323212,0.0132016,93918.0,93902.0,0.010649]
[1767670323512,0.0132016,93918.0,93901.0,0.101209]
[1767670326009,0.0132016,93918.0,93901.0,0.087209]
[1767670328416,0.0132016,93923.0,93901.0,0.087209]
[1767670328717,0.0132016,93922.0,93901.0,0.087209]
[1767670329711,0.0132016,93921.0,93901.0,0.087209]
[1767670330707,0.0132016,93921.0,93902.0,0.01426249]
[1767670331125,0.0132016,93921.0,93905.0,0.010649]
[1767670331417,0.09705939,93922.0,93905.0,0.010649]
[1767670332120,0.0132016,93924.0,93907.0,0.010649]
[1767670332619,0.09705939,93928.0,93908.0,0.11280792]
[1767670332818,0.11026099,93928.0,93908.0,0.11280792]
[1767670333118,0.0132016,93927.0,93908.0,0.11280792]
[1767670333314,0.11026099,93927.0,93908.0,0.09854543]
[1767670333515,0.0132016,93926.0,93908.0,0.09854543]
[1767670333720,0.0132016,93926.0,93908.0,0.08054543]
[1767670335222,0.0132016,93926.0,93909.0,0.010649]
[1767670335719,0.00015976,93927.0,93914.0,0.010648]
[1767670335918,0.00015976,93927.0,93919.0,0.010647]
[1767670336117,0.00212928,93929.0,93919.0,0.010647]
[1767670336527,0.01892279,93933.0,93919.0,0.010647]
[1767670337414,0.0132016,93932.0,93917.0,0.00015976]
[1767670337618,0.01892279,93933.0,93917.0,0.00015976]
[1767670337819,0.03212439,93933.0,93917.0,0.00015976]
[1767670338925,0.01892279,93933.0,93917.0,0.00015976]
[1767670340216,0.01892279,93933.0,93917.0,0.01442225]
[1767670340414,0.11026099,93932.0,93917.0,0.00015976]
[1767670341222,0.03212439,93933.0,93917.0,0.00015976]
[1767670341428,0.0132016,93932.0,93912.0,0.01426249]
[1767670341824,0.0132016,93932.0,93912.0,0.11280792]
[1767670342123,0.11598218,93933.0,93911.0,0.09236776]
[1767670342124,0.11598218,93933.0,93914.0,0.11280792]
[1767670343726,0.11598218,93933.0,93915.0,0.010648]
[1767670343927,0.12918378,93933.0,93915.0,0.010648]
[1767670344127,0.0132016,93932.0,93915.0,0.010648]
[1767670346822,0.01892279,93933.0,93915.0,0.010648]
[1767670347029,0.01892279,93933.0,93918.0,0.010648]
[1767670349336,0.01892279,93933.0,93918.0,0.11276891]
[1767670349537,0.01892279,93933.0,93919.0,0.01407933]
[1767670349736,0.0132016,93944.0,93925.0,0.010647]
[1767670349931,0.0132016,93947.0,93928.0,0.010646]
[1767670350132,0.0132016,93946.0,93928.0,0.010646]
[1767670350425,0.0132016,93944.0,93928.0,0.010646]
[1767670350622,0.11026099,93944.0,93921.0,0.09056]
[1767670350938,0.0132016,93943.0,93921.0,0.09056]
[1767670351236,0.0132016,93943.0,93921.0,0.10350236]
[1767670351435,0.0132016,93943.0,93928.0,0.010646]
[1767670351735,0.01329142,93951.0,93932.0,0.11724441]
[1767670352324,0.01329142,93950.0,93932.0,0.010646]
[1767670353639,0.01329142,93950.0,93929.0,0.02358836]
[1767670354340,0.01329142,93950.0,93931.0,0.010646]
[1767670355242,0.01329142,93949.0,93931.0,0.010646]
[1767670355438,0.01329142,93943.0,93924.0,0.09365605]
[1767670355742,0.01329142,93943.0,93899.0,0.00212996]
[1767670355743,0.01329142,93940.0,93925.0,0.09056]
[1767670356336,0.01329142,93945.0,93926.0,0.010647]
[1767670356731,0.01329142,93945.0,93925.0,0.09056]
[1767670357233,0.01329142,93945.0,93925.0,0.10350236]
[1767670357433,0.09419256,93946.0,93927.0,0.10659841]
[1767670357746,0.10748398,93946.0,93930.0,0.010646]
[1767670359646,0.01329142,93950.0,93929.0,0.02358836]
[1767670360039,0.01329142,93949.0,93929.0,0.02358836]
[1767670360346,0.01329142,93948.0,93931.0,0.010646]
[1767670360943,0.01329142,93948.0,93929.0,0.01294236]
[1767670360944,0.09056,93954.0,93930.0,0.01294236]
[1767670361146,0.01329142,93965.0,93946.0,0.01294236]
[1767670361444,0.01329142,93965.0,93946.0,0.09365605]
[1767670361747,0.01329142,93961.0,93942.0,0.010645]
[1767670361950,0.01329142,93961.0,93946.0,0.00015967]
[1767670362339,0.01329142,93960.0,93946.0,0.00015967]
[1767670362539,0.01046735,93969.0,93946.0,0.00015967]
[1767670362540,0.10748398,93957.0,93946.0,0.00015967]
[1767670362745,0.01329142,93956.0,93946.0,0.00015967]
[1767670363450,0.02393442,93956.0,93946.0,0.00015967]
[1767670363645,0.01329142,93955.0,93946.0,0.00015967]
[1767670364347,0.01329142,93962.0,93946.0,0.00015967]
[1767670364540,0.09052,93970.0,93947.0,0.01073116]
[1767670364741,0.01329142,93969.0,93947.0,0.01073116]
[1767670364941,0.10381142,93968.0,93949.0,0.010644]
[1767670365151,0.01329142,93967.0,93947.0,0.01073116]
[1767670365349,0.01329142,93966.0,93949.0,0.010644]
[1767670365745,0.01329142,93966.0,93946.0,0.09381572]
[1767670365746,0.01329142,93965.0,93946.0,0.10445972]
[1767670365950,0.01329142,93963.0,93946.0,0.01080367]
[1767670367757,0.11445342,93968.0,93946.0,0.02020641]
[1767670368150,0.01329142,93967.0,93946.0,0.02020641]
[1767670368647,0.01329142,93969.0,93950.0,0.010644]
[1767670368855,0.01329142,93969.0,93949.0,0.00668928]
[1767670369153,0.01329142,93968.0,93947.0,0.010644]
[1767670369345,0.01329142,93967.0,93946.0,0.00015967]
[1767670369542,0.01329142,93958.0,93941.0,0.09052]
[1767670369747,0.01329142,93954.0,93941.0,0.09052]
[1767670369947,0.01329142,93953.0,93941.0,0.09052]
[1767670370349,0.02393542,93953.0,93941.0,0.09052]
[1767670370654,0.01329142,93951.0,93935.0,0.010646]
[1767670371253,0.01329142,93951.0,93932.0,0.101166]
[1767670371454,0.01329142,93950.0,93932.0,0.101166]
[1767670371654,0.01329142,93950.0,93933.0,0.010646]
[1767670372352,0.09419256,93951.0,93933.0,0.010646]
[1767670372551,0.09419256,93951.0,93933.0,0.01730954]
[1767670372952,0.10748398,93951.0,93933.0,0.010646]
[1767670373462,0.01329142,93948.0,93932.0,0.09052]
[1767670373651,0.09419256,93949.0,93933.0,0.010646]
[1767670374059,0.09419256,93955.0,93934.0,0.00654454]
[1767670374263,0.01329142,93952.0,93933.0,0.10430205]
[1767670374662,0.01329142,93952.0,93933.0,0.09365605]
[1767670374871,0.01169149,93949.0,93934.0,0.010646]
[1767670375161,0.09434244,93950.0,93934.0,0.010646]
[1767670375759,0.01169149,93952.0,93934.0,0.010646]
[1767670377164,0.09434244,93953.0,93934.0,0.00497631]
[1767670377363,0.09434244,93953.0,93937.0,0.010645]
[1767670377764,0.09434244,93953.0,93940.0,0.09798438]
[1767670378365,0.01169149,93955.0,93940.0,0.09798438]
[1767670378863,0.01169149,93955.0,93937.0,0.010645]
[1767670378864,0.09052,93957.0,93939.0,0.010645]
[1767670379065,0.09052,93957.0,93940.0,0.09798438]
[1767670379465,0.95426075,95257.0,93932.0,0.09052]
[1767670379466,0.09052,93963.0,93949.0,0.00508329]
[1767670379662,0.09052,93964.0,93950.0,0.09798438]
[1767670380065,0.01169149,93968.0,93950.0,0.09798438]
[1767670380263,0.09052,93967.0,93950.0,0.09798438]
[1767670380468,0.09052,93967.0,93949.0,0.00508329]
[1767670380671,0.09052,93967.0,93952.0,0.010644]
[1767670381271,0.01266029,93966.0,93950.0,0.09798438]
[1767670381473,0.09434244,93969.0,93956.0,0.09798438]
[1767670381671,0.09052,93978.0,93961.0,0.00488458]
[1767670381977,0.09052,93978.0,93951.0,0.4]
[1767670381978,0.01064,93985.0,93968.0,0.09798438]
[1767670382172,0.09052,93984.0,93964.0,0.00488458]
[1767670382373,0.10318029,93984.0,93964.0,0.00488458]
[1767670382576,0.6,93994.0,93980.0,0.00491174]
[1767670382769,0.19035389,94035.0,93980.0,0.00491174]
[1767670382770,0.01266029,94004.0,93984.0,0.09798438]
[1767670382964,0.01266029,94004.0,93980.0,0.00491174]
[1767670382965,0.01266029,94002.0,93990.0,0.09798438]
[1767670383179,0.01266029,94002.0,93980.0,0.00491174]
[1767670383585,0.01266029,94001.0,93980.0,0.10289612]
[1767670383895,0.01266029,93996.0,93977.0,0.09278823]
[1767670384090,0.01266029,93995.0,93973.0,0.00479407]
[1767670384292,0.01266029,93992.0,93972.0,0.1881023]
[1767670384485,0.09052,93998.0,93975.0,0.01193298]
[1767670384486,0.01266029,93996.0,93975.0,0.01193298]
[1767670384686,0.01266029,93995.0,93975.0,0.01193298]
[1767670384885,0.01266029,93995.0,93980.0,0.08598438]
[1767670386291,0.09144216,93996.0,93980.0,0.08598438]
[1767670386696,0.09052,93998.0,93978.0,0.01193298]
[1767670386892,0.01266029,93996.0,93980.0,0.09798438]
[1767670387192,0.01266029,94001.0,93980.0,0.10991736]
[1767670387394,0.01266029,93999.0,93980.0,0.10991736]
[1767670387595,0.09052,93998.0,93980.0,0.10991736]
[1767670387790,0.09052,93998.0,93980.0,0.09798438]
[1767670388397,0.09052,93998.0,93981.0,0.01064]
[1767670388594,0.09144216,94006.0,93985.0,0.01193298]
[1767670388798,0.09048,94005.0,93985.0,0.01193298]
[1767670388999,0.10314029,94005.0,93985.0,0.01193298]
[1767670389393,0.10309029,94005.0,93985.0,0.01193298]
[1767670389798,0.01266029,94004.0,93985.0,0.01193298]
[1767670390000,0.01266029,94003.0,93984.0,0.10472121]
[1767670390494,0.01266029,94007.0,93987.0,0.01064]
[1767670390691,0.09048,94002.0,93987.0,0.01064]
[1767670391092,0.09048,94002.0,93984.0,0.01064]
[1767670391301,0.09048,94001.0,93985.0,0.01193298]
[1767670391798,0.09048,94001.0,93984.0,0.10342823]
[1767670391991,0.09048,94001.0,93984.0,0.09278823]
[1767670392191,0.01266029,93998.0,93981.0,0.01064]
[1767670392392,0.09048,94001.0,93983.0,0.01193298]
[1767670392593,0.09798438,94000.0,93982.0,0.08072121]
[1767670392786,0.09048,94001.0,93982.0,0.08072121]
[1767670393186,0.09798438,94000.0,93973.0,0.010641]
[1767670393394,0.09144216,93997.0,93972.0,0.09052]
[1767670393601,0.10208216,93984.0,93964.0,0.09048]
[1767670393793,0.20006754,93980.0,93964.0,0.09048]
[1767670393999,0.09144216,93979.0,93959.0,0.0926086]
[1767670394303,0.10208316,93979.0,93959.0,0.0926086]
[1767670394492,0.09144216,93979.0,93959.0,0.0926086]
[1767670395300,0.09144216,93979.0,93959.0,0.1038388]
[1767670395502,0.09144216,93979.0,93960.0,0.0218732]
[1767670395696,0.09144216,93979.0,93960.0,0.0112302]
[1767670396392,0.18942654,93970.0,93959.0,0.0926086]
[1767670396593,0.09144216,93969.0,93950.0,0.09048]
[1767670397192,0.10410245,93969.0,93950.0,0.09048]
[1767670397492,0.01266029,93967.0,93950.0,0.09048]
[1767670397698,0.01266029,93961.0,93950.0,0.09048]
[1767670397889,0.09798438,93960.0,93942.0,0.09278823]
[1767670398087,0.01266029,93961.0,93942.0,0.09278823]
[1767670398289,0.09144216,93962.0,93942.0,0.10472121]
[1767670398801,0.09144216,93962.0,93943.0,0.010645]
[1767670399397,0.09144216,93962.0,93943.0,0.01193298]
[1767670399601,0.10410245,93956.0,93941.0,0.09048]
[1767670399992,0.01266029,93954.0,93941.0,0.09048]
[1767670400387,0.09144216,93955.0,93938.0,0.010645]
[1767670400592,0.10410245,93955.0,93938.0,0.010645]
[1767670400793,0.10410245,93955.0,93935.0,0.01193298]
[1767670400998,0.01266029,93967.0,93945.0,0.01193298]
[1767670401199,0.09048,93966.0,93946.0,0.01193298]
[1767670401594,0.10314029,93966.0,93946.0,0.01193298]
[1767670401794,0.10410245,93963.0,93944.0,0.010645]
[1767670401995,0.01266029,93962.0,93944.0,0.010645]
[1767670402302,0.01266029,93958.0,93939.0,0.09278823]
[1767670402801,0.10410245,93958.0,93938.0,0.010645]
[1767670403597,0.10410245,93958.0,93941.0,0.010645]
[1767670403999,0.010644,93954.0,93934.0,0.09278823]
[1767670404296,0.01266029,93955.0,93934.0,0.09278823]
[1767670404492,0.01266029,93949.0,93933.0,0.101076]
[1767670404690,0.09144216,93950.0,93933.0,0.101076]
[1767670404888,0.01266029,93953.0,93934.0,0.4]
[1767670405096,0.010643,93955.0,93934.0,0.41193298]
[1767670405299,0.010643,93955.0,93934.0,0.01193298]
[1767670405492,0.01266029,93950.0,93933.0,0.09043]
[1767670405693,0.01266029,93949.0,93933.0,0.09043]
[1767670406094,0.01266029,93948.0,93933.0,0.09043]
[1767670406907,0.01266029,93945.0,93933.0,0.09043]
[1767670407108,0.01266029,93945.0,93930.0,0.010646]
[1767670407305,0.01266029,93945.0,93926.0,0.010647]
[1767670408004,0.09144216,93946.0,93929.0,0.00877528]
[1767670408196,0.01266029,93945.0,93925.0,0.10245298]
[1767670408402,0.01266029,93939.0,93926.0,0.010647]